bitfinex/quotes_ETHUSD_20220213
["timestamp","ask_amount","ask_price","bid_price","bid_amount"]
[1644732912193,4.01701662,2911.2,2911.1,0.010725]
[1644732913104,4.01701662,2911.2,2910.3,0.25]
[1644732913296,1.19243885,2910.5,2910.3,0.25]
[1644732913494,2.02743885,2910.5,2909.9,1.19111637]
[1644732914097,0.835,2910.5,2909.9,1.19111637]
[1644732914298,3.52903694,2910.4,2909.7,1.141]
[1644732914498,3.52903694,2910.4,2909.5,1.0]
[1644732914499,2.09963864,2910.2,2909.5,1.0]
[1644732914701,2.09963864,2910.2,2910.1,0.01072634]
[1644732915346,2.27143864,2910.2,2910.1,0.01072634]
[1644732915641,3.36987473,2910.2,2908.8,0.97985798]
[1644732915840,0.96529155,2909.2,2908.8,0.97985798]
[1644732916039,4.8647,2910.1,2908.8,0.97985798]
[1644732916238,3.6718,2910.1,2908.8,0.97985798]
[1644732916640,5.0,2910.0,2908.9,0.00298662]
[1644732916847,5.0,2909.8,2908.9,7.8164907]
[1644732917041,0.6678,2909.7,2909.3,0.01072735]
[1644732917244,4.87403249,2909.7,2909.3,0.01072735]
[1644732917844,1.00600619,2909.6,2909.3,0.01072735]
[1644732918041,3.71306213,2909.5,2909.0,0.00298662]
[1644732918242,3.71306213,2909.5,2909.4,0.01072728]
[1644732919093,3.71306213,2909.5,2909.0,0.00298662]
[1644732919291,1.10995642,2909.1,2909.0,0.00298662]
[1644732919494,4.26868598,2909.5,2908.9,7.85641991]
[1644732919692,6.0,2910.2,2908.9,7.85940653]
[1644732919693,2.09963864,2909.0,2908.9,7.85940653]
[1644732919892,2.09963864,2909.0,2908.9,7.85641991]
[1644732920292,2.09963864,2909.0,2908.9,7.81350408]
[1644732920496,2.09963864,2909.0,2908.9,8.88547293]
[1644732921094,2.09963864,2909.0,2908.9,7.81350408]
[1644732922389,2.09963864,2909.0,2908.9,8.72601973]
[1644732924844,2.09963864,2909.0,2908.9,10.02601973]
[1644732924845,2.02123864,2909.0,2908.9,10.02601973]
[1644732925045,0.01858101,2909.6,2909.0,4.1712]
[1644732925242,0.01858101,2909.6,2909.1,4.20511476]
[1644732925443,0.01858101,2909.6,2909.1,5.50810138]
[1644732925645,0.01858101,2909.6,2909.1,1.79898662]
[1644732925840,0.01858101,2909.6,2909.1,1.79479943]
[1644732926145,0.01858101,2909.6,2909.2,3.48489563]
[1644732926402,0.01858101,2909.6,2909.3,1.496]
[1644732926598,0.02011735,2909.7,2909.4,4.15]
[1644732926802,3.58738549,2911.1,2909.5,1.496]
[1644732926997,3.50345355,2911.1,2909.5,5.01337975]
[1644732927196,0.88628096,2910.7,2910.1,1.13986994]
[1644732927398,0.88628096,2910.7,2910.2,0.00298662]
[1644732927799,0.88628096,2910.7,2910.3,0.0039056]
[1644732928799,0.88628096,2910.7,2910.2,0.00298662]
[1644732929003,0.88628096,2910.7,2910.4,0.00390546]
[1644732930038,0.88628096,2910.7,2910.2,0.00298662]
[1644732930339,4.07106552,2911.1,2910.2,0.00298662]
[1644732930340,4.07106552,2911.1,2910.4,0.01072757]
[1644732930538,0.1718,2911.1,2910.4,0.01072757]
[1644732931138,0.1718,2911.1,2910.2,0.00298662]
[1644732931340,0.99144535,2911.0,2910.2,0.00298662]
[1644732931537,0.99144535,2911.0,2910.6,0.0107273]
[1644732932037,0.1716,2911.5,2910.6,0.0107273]
[1644732932437,0.1716,2911.5,2910.2,0.04590226]
[1644732932438,0.1716,2911.5,2910.2,0.00298662]
[1644732932638,0.1716,2911.5,2910.9,0.0107269]
[1644732932838,0.02145379,2910.8,2910.5,0.04291403]
[1644732933538,0.02145379,2910.8,2910.4,0.00298662]
[1644732933992,0.02145379,2910.8,2910.1,1.13986994]
[1644732933993,0.02145379,2910.8,2910.2,0.00298662]
[1644732936194,0.02145379,2910.8,2910.4,0.01072763]
[1644732937195,0.02145379,2910.8,2910.2,0.00298662]
[1644732937396,0.02145379,2910.8,2910.5,0.0107275]
[1644732938440,0.02145379,2910.8,2910.3,1.1236954]
[1644732938646,0.02145379,2910.8,2910.5,0.01072743]
[1644732939046,3.32077595,2910.8,2910.5,0.01072743]
[1644732939448,0.1716,2910.7,2910.5,0.01072743]
[1644732939647,0.1716,2910.7,2909.9,0.00298662]
[1644732939848,0.1716,2910.7,2910.5,0.01072743]
[1644732940846,0.1716,2910.7,2910.2,0.00298662]
[1644732941047,0.02145379,2910.8,2910.5,0.0107275]
[1644732941489,0.04977826,2910.8,2910.5,0.0107275]
[1644732942089,0.04977826,2910.8,2910.2,0.00298662]
[1644732942292,0.04977826,2910.8,2910.5,0.01072743]
[1644732943292,0.04977826,2910.8,2910.2,0.00298662]
[1644732943494,0.04977826,2910.8,2910.5,0.01072743]
[1644732944398,0.04977826,2910.8,2910.2,0.00298662]
[1644732944598,0.04977826,2910.8,2910.5,0.01072743]
[1644732945639,0.04977826,2910.8,2910.2,0.00298662]
[1644732945839,0.04977826,2910.8,2910.5,0.01072743]
[1644732946843,0.04977826,2910.8,2910.2,0.00298662]
[1644732947044,0.04977826,2910.8,2910.5,0.01072743]
[1644732947944,0.04977826,2910.8,2910.2,0.49898662]
[1644732948147,0.04977826,2910.8,2910.3,0.00298662]
[1644732948447,0.04977826,2910.8,2910.5,0.01072743]
[1644732949203,0.04977826,2910.8,2910.5,0.00298662]
[1644732949398,0.04977826,2910.8,2910.5,0.01371405]
[1644732949597,0.04977826,2910.8,2910.6,0.95427497]
[1644732950596,0.04977826,2910.8,2910.6,0.96500234]
[1644732950797,0.04977826,2910.8,2910.6,0.01072737]
[1644732951704,0.04977826,2910.8,2910.5,0.00298662]
[1644732951898,0.04977826,2910.8,2910.6,0.01072737]
[1644732952742,0.04977826,2910.8,2910.3,0.00298662]
[1644732952942,0.04977826,2910.8,2910.1,0.00298662]
[1644732953140,0.04977826,2910.8,2910.6,0.01072737]
[1644732953945,1.46148645,2910.7,2910.6,0.01072737]
[1644732954146,0.04977826,2910.8,2910.1,0.00298662]
[1644732954349,0.04977826,2910.8,2910.6,0.01072737]
[1644732954546,1.46146996,2910.7,2910.6,0.01072737]
[1644732955245,1.46146996,2910.7,2909.9,0.00298662]
[1644732955445,0.86128054,2910.4,2910.0,0.04291678]
[1644732956490,0.86128054,2910.4,2909.9,0.00298662]
[1644732956692,0.86128054,2910.4,2910.1,0.01072804]
[1644732957290,0.0373802,2910.7,2910.1,0.01072804]
[1644732957692,0.0373802,2910.7,2909.9,1.13888457]
[1644732958293,0.01217299,2910.8,2909.9,1.13888457]
[1644732958493,1.46147152,2910.7,2909.9,1.13888457]
[1644732959699,1.05311601,2910.5,2909.9,1.13888457]
[1644732961342,1.05311601,2910.5,2909.9,0.00298662]
[1644732965397,1.46152455,2910.4,2909.9,0.00298662]
[1644732965598,1.05311601,2910.5,2909.9,0.00298662]
[1644732966401,1.46150675,2910.4,2909.9,0.00298662]
[1644732966799,0.87547671,2910.0,2909.9,0.00298662]
[1644732967001,0.87547671,2910.0,2909.8,0.13819997]
[1644732970053,0.1718,2910.7,2909.8,0.13819997]
[1644732970247,3.45103675,2910.7,2909.9,0.00298662]
[1644732970648,0.1718,2910.7,2909.9,0.00298662]
[1644732971047,1.46153254,2910.6,2909.9,0.00298662]
[1644732971491,1.05189344,2910.4,2909.9,0.05240732]
[1644732971709,1.46153254,2910.3,2909.9,0.05240732]
[1644732972895,1.05189344,2910.4,2909.9,0.05240732]
[1644732973200,0.1718,2910.7,2909.9,1.40727732]
[1644732973398,0.01217299,2910.8,2909.9,2.40727732]
[1644732973596,1.46137038,2910.7,2909.9,2.40727732]
[1644732974898,1.46137038,2910.7,2909.9,1.40727732]
[1644732975146,1.46137038,2910.7,2909.9,2.40727732]
[1644732975349,1.46137038,2910.7,2909.9,1.40727732]
[1644732975545,1.46137038,2910.7,2909.9,2.40727732]
[1644732975948,1.46137038,2910.7,2909.9,1.40727732]
[1644732976550,1.46137038,2910.7,2910.0,1.03138867]
[1644732976752,1.46137038,2910.7,2910.1,0.00298662]
[1644732981203,1.46137038,2910.7,2910.3,0.04881643]
[1644732981602,1.46137038,2910.7,2910.5,0.88144218]
[1644732983255,1.4601251,2910.7,2910.5,0.88144218]
[1644732984957,0.01217299,2910.8,2910.5,1.67744218]
[1644732985351,0.01217299,2910.8,2910.5,2.67744218]
[1644732986402,0.01217299,2910.8,2910.6,0.04968226]
[1644732986799,0.01217299,2910.8,2910.7,0.496]
[1644732987200,0.01217299,2910.8,2910.6,0.04968226]
[1644732989105,0.01217299,2910.8,2910.6,0.90834226]
[1644732989309,0.01217299,2910.8,2910.6,1.90834226]
[1644732989804,0.01217299,2910.8,2910.7,0.496]
[1644732992253,0.01217299,2910.8,2910.7,0.796]
[1644732992652,0.01217299,2910.8,2910.7,0.496]
[1644732993152,0.01217299,2910.8,2910.7,1.41259746]
[1644732993353,0.01217299,2910.8,2910.7,2.41259746]
[1644732995699,0.01217299,2910.8,2910.7,2.58419746]
[1644732996506,7.299e-05,2910.8,2910.7,6.14751682]
[1644732996703,7.299e-05,2910.8,2910.7,3.05628875]
[1644732997645,7.299e-05,2910.8,2910.7,2.75628875]
[1644733000353,7.299e-05,2910.8,2910.7,2.58468875]
[1644733000554,7.299e-05,2910.8,2910.7,1.66809129]
[1644733000753,7.299e-05,2910.8,2910.7,0.66809129]
[1644733000952,7.299e-05,2910.8,2910.7,1.66809129]
[1644733001154,7.299e-05,2910.8,2910.7,0.66809129]
[1644733001393,7.299e-05,2910.8,2910.7,1.66809129]
[1644733001597,7.299e-05,2910.8,2910.7,0.66809129]
[1644733001796,7.299e-05,2910.8,2910.7,1.66809129]
[1644733001993,7.299e-05,2910.8,2910.7,0.66809129]
[1644733002194,7.299e-05,2910.8,2910.7,1.66809129]
[1644733002597,7.299e-05,2910.8,2910.7,0.66809129]
[1644733002797,7.299e-05,2910.8,2910.7,1.66809129]
[1644733003198,7.299e-05,2910.8,2910.7,0.66809129]
[1644733003397,7.299e-05,2910.8,2910.7,1.66809129]
[1644733003600,7.299e-05,2910.8,2910.7,0.66809129]
[1644733003796,7.299e-05,2910.8,2910.7,1.66809129]
[1644733003999,7.299e-05,2910.8,2910.7,0.66809129]
[1644733004205,7.299e-05,2910.8,2910.7,1.66809129]
[1644733004400,7.299e-05,2910.8,2910.7,0.66809129]
[1644733004603,7.299e-05,2910.8,2910.6,0.06040956]
[1644733005047,0.90985002,2910.8,2910.6,0.06040956]
[1644733005245,0.90985002,2910.8,2910.6,0.04968226]
[1644733005545,0.90985002,2910.8,2910.6,0.0597338]
[1644733006546,0.90985002,2910.8,2910.6,0.04968226]
[1644733006749,0.90985002,2910.8,2910.6,0.03308694]
[1644733007149,3.29014806,2910.7,2910.6,0.03308694]
[1644733007748,4.75160022,2910.7,2910.6,0.03308694]
[1644733008149,4.92320022,2910.7,2910.6,0.03308694]
[1644733008348,1.63305216,2910.7,2910.6,0.03308694]
[1644733008550,0.1716,2910.7,2910.6,0.03308694]
[1644733009195,0.90985002,2910.8,2910.6,0.03308694]
[1644733009802,1.461449,2910.7,2910.6,0.03308694]
[1644733010398,0.89757751,2910.3,2909.9,1.55205216]
[1644733010600,0.89757751,2910.3,2909.9,1.47397404]
[1644733010797,7.299e-05,2910.8,2909.9,1.47397404]
[1644733010999,7.299e-05,2910.8,2910.0,0.1718]
[1644733011199,7.299e-05,2910.8,2910.6,0.03229741]
[1644733011599,3.51508671,2910.8,2910.6,0.03229741]
[1644733011798,1.46143275,2910.7,2910.6,0.03229741]
[1644733012198,7.299e-05,2910.8,2910.6,0.03229741]
[1644733012199,0.88139316,2910.8,2910.6,0.03229741]
[1644733012400,4.91720511,2910.7,2910.6,0.03229741]
[1644733014453,4.9039408,2910.7,2910.6,0.03229741]
[1644733014658,4.7323408,2910.7,2910.6,0.03229741]
[1644733015555,1.46143275,2910.7,2910.6,0.03229741]
[1644733016699,1.49809741,2910.7,2909.9,1.11598554]
[1644733017000,1.46143275,2910.6,2909.9,0.18282109]
[1644733017399,3.38061515,2910.5,2909.9,0.17209129]
[1644733017602,1.35285846,2910.4,2909.9,0.01005658]
[1644733017801,3.29360277,2910.3,2909.9,0.01005658]
[1644733017999,0.01005471,2910.4,2909.9,0.01005658]
[1644733018601,3.51838983,2910.5,2909.6,3.9552]
[1644733018809,1.0827866,2910.1,2909.9,0.01005637]
[1644733019812,1.0827866,2910.1,2909.5,0.17209129]
[1644733020042,1.09284164,2910.1,2909.9,0.01005605]
[1644733020444,0.01005504,2910.1,2909.9,0.01005605]
[1644733020852,0.1718,2910.6,2909.6,2.17888852]
[1644733021251,0.01072512,2910.1,2909.9,0.01072619]
[1644733022046,0.03686204,2910.5,2909.6,2.17888852]
[1644733022247,0.03686204,2910.5,2909.9,0.01072619]
[1644733022452,0.01072512,2910.1,2909.9,0.01072619]
[1644733023248,0.03686204,2910.5,2909.6,2.17888852]
[1644733023449,3.33641158,2910.5,2909.6,2.17888852]
[1644733023648,0.01072512,2910.1,2909.9,0.01072619]
[1644733024506,0.1718,2910.4,2909.5,0.17209129]
[1644733024707,0.01073174,2910.1,2909.9,0.01073281]
[1644733025706,0.1718,2910.4,2909.6,0.00296286]
[1644733025906,0.01073174,2910.1,2909.9,0.01073281]
[1644733026508,0.04740535,2910.1,2909.9,0.01073281]
[1644733026906,0.03667361,2910.1,2909.4,0.00296286]
[1644733027110,0.04740535,2910.1,2909.9,0.01073281]
[1644733027546,0.96830262,2910.0,2909.9,0.01073281]
[1644733027755,6.93820262,2910.0,2909.9,0.01073281]
[1644733027949,6.93820262,2910.0,2909.2,0.00296286]
[1644733027950,0.02146562,2909.6,2909.2,0.00296286]
[1644733028148,0.1718,2909.5,2909.0,0.00296286]
[1644733028547,0.1718,2909.5,2909.1,0.0429415]
[1644733029250,0.1718,2909.5,2909.0,0.00296286]
[1644733029654,0.1718,2909.5,2909.2,0.00385821]
[1644733029852,1.15689942,2909.3,2909.2,0.00385821]
[1644733030554,1.15689942,2909.3,2909.0,0.00296286]
[1644733031052,1.15689942,2909.3,2908.9,7.81252359]
[1644733033099,1.15689942,2909.3,2909.0,0.01072914]
[1644733033298,1.15689942,2909.3,2909.0,0.013692]
[1644733034103,1.15689942,2909.3,2909.0,0.00296286]
[1644733034605,1.15689942,2909.3,2909.0,0.01369193]
[1644733035250,1.15689942,2909.3,2909.0,0.00296286]
[1644733035650,1.15689942,2909.3,2909.0,0.01369193]
[1644733036452,0.05377171,2909.2,2909.0,0.01369193]
[1644733036652,0.05377171,2909.2,2909.0,0.00296286]
[1644733036850,0.05377171,2909.2,2909.0,0.01369193]
[1644733037753,0.05377171,2909.2,2909.0,0.00296286]
[1644733037967,0.05377171,2909.2,2909.0,0.013692]
[1644733038906,0.05377171,2909.2,2909.1,0.17209129]
[1644733039104,0.05377171,2909.2,2909.1,0.66809129]
[1644733039903,0.02146562,2909.6,2909.1,4.32511684]
[1644733040205,0.02146562,2909.6,2909.2,0.17209129]
[1644733040406,0.02146562,2909.6,2909.3,0.496]
[1644733040606,0.02146562,2909.6,2909.3,1.40509981]
[1644733040803,0.02146562,2909.6,2909.3,1.5771911]
[1644733041004,0.02146562,2909.6,2909.3,2.4361811]
[1644733041204,0.02146562,2909.6,2909.3,1.5771911]
[1644733041704,0.02146562,2909.6,2909.3,1.09192637]
[1644733041910,0.02146562,2909.6,2909.3,0.01073527]
[1644733042549,0.02146562,2909.6,2909.0,0.00296286]
[1644733042746,0.96327253,2909.3,2909.0,0.00296286]
[1644733042948,3.30705718,2909.2,2909.0,0.00296286]
[1644733043151,3.30705718,2909.2,2908.9,7.8554711]
[1644733043752,3.30705718,2909.2,2908.9,7.81252359]
[1644733043956,4.25265718,2909.2,2908.9,7.82325938]
[1644733044556,0.1718,2909.1,2908.9,7.82325938]
[1644733044754,3.30705718,2909.2,2908.9,7.82325938]
[1644733044956,3.30705718,2909.2,2908.9,7.81252359]
[1644733045355,3.30705718,2909.2,2908.9,7.82325945]
[1644733046156,3.15705718,2909.2,2908.9,7.81252359]
[1644733046400,3.15705718,2909.2,2908.9,7.82325938]
[1644733046998,3.10705718,2909.2,2908.9,7.82325938]
[1644733047200,0.1718,2909.1,2908.9,7.82325938]
[1644733047403,0.1718,2909.1,2908.9,7.81252359]
[1644733047602,0.1718,2909.2,2908.9,7.82325938]
[1644733047802,3.46417288,2909.2,2908.9,7.82325938]
[1644733048606,3.46417288,2909.2,2908.9,7.81252359]
[1644733048804,3.46417288,2909.2,2908.9,7.82325938]
[1644733049807,3.29237288,2909.2,2908.9,7.81252359]
[1644733050046,3.29237288,2909.2,2908.9,7.82325938]
[1644733050251,3.33053359,2909.2,2908.9,7.82325938]
[1644733050447,1.13507253,2909.3,2908.9,7.82325938]
[1644733050748,0.96327253,2909.3,2908.9,7.82325938]
[1644733050952,0.96327253,2909.3,2908.9,7.81252359]
[1644733051149,0.96327253,2909.3,2909.0,0.04405004]
[1644733051349,0.96327253,2909.3,2908.9,7.81252359]
[1644733051350,0.96327253,2909.3,2908.9,7.72738638]
[1644733055703,0.1718,2909.5,2908.9,7.72738638]
[1644733055904,1.46231252,2909.4,2908.9,7.72738638]
[1644733056109,1.46231252,2909.4,2908.9,7.73812248]
[1644733057105,1.46231252,2909.4,2908.9,7.72738638]
[1644733057305,1.46231252,2909.4,2908.9,7.7381226]
[1644733058146,1.46231252,2909.4,2908.9,7.72738638]
[1644733058549,1.46231252,2909.4,2908.9,7.7381226]
[1644733059351,1.46231252,2909.4,2908.9,7.72738638]
[1644733059555,8.99176481,2909.3,2908.9,7.72738638]
[1644733059755,1.46231252,2909.2,2908.9,7.7381226]
[1644733059952,3.58830275,2909.1,2908.9,7.7381226]
[1644733060153,1.46231252,2909.0,2908.9,7.7381226]
[1644733060552,1.46231252,2909.0,2908.9,7.72738638]
[1644733060751,1.46231252,2909.0,2908.0,0.13819997]
[1644733060954,1.46231252,2909.0,2908.8,0.01005823]
[1644733061152,3.32822262,2908.9,2908.8,0.01005823]
[1644733061408,3.67799785,2909.1,2908.8,0.01005823]
[1644733061604,1.4624851,2909.0,2908.8,0.01005823]
[1644733061803,3.53488074,2908.9,2908.4,0.83920639]
[1644733062002,1.4624851,2908.8,2908.1,0.0402423]
[1644733062202,3.39774198,2908.7,2908.1,0.0402423]
[1644733062404,3.32744522,2908.7,2908.1,0.0402423]
[1644733062702,0.1718,2909.2,2908.1,0.0402423]
[1644733062703,4.0590531,2909.2,2908.1,0.0402423]
[1644733062903,1.46260758,2909.1,2908.1,0.0402423]
[1644733063103,3.9405761,2909.0,2908.0,0.13819997]
[1644733063303,1.46260758,2908.9,2908.5,0.00384468]
[1644733063505,3.38223418,2908.8,2908.5,0.00384468]
[1644733063703,2.42700083,2908.7,2908.5,0.00384468]
[1644733063913,0.96439325,2908.7,2908.5,0.00384468]
[1644733064208,3.30514824,2908.6,2908.0,0.13819997]
[1644733064515,3.30514824,2908.6,2908.5,0.00384475]
[1644733064516,4.65254824,2908.6,2908.5,0.00384475]
[1644733064710,11.11538101,2908.6,2908.5,0.00384475]
[1644733064912,10.81538101,2908.6,2908.5,0.00384475]
[1644733065156,10.81538101,2908.6,2907.0,3.8033]
[1644733065157,3.8,2908.5,2907.0,3.8033]
[1644733065357,5.0,2908.1,2907.2,0.25]
[1644733065556,5.0,2908.1,2907.3,0.04092649]
[1644733065557,1.63473277,2908.0,2907.3,0.04092649]
[1644733065756,1.46283277,2907.9,2907.3,0.04092649]
[1644733065954,1.46283277,2907.9,2906.8,0.0437686]
[1644733066155,3.5,2908.2,2907.4,1.00119094]
[1644733066353,1.46296148,2908.1,2907.4,1.00119094]
[1644733066559,1.1934,2908.3,2907.5,0.00294085]
[1644733066754,3.8456,2908.4,2907.5,0.00294085]
[1644733068053,3.8456,2908.4,2907.8,0.00383903]
[1644733069113,3.8456,2908.4,2907.5,0.00294085]
[1644733069310,0.01074328,2908.3,2907.9,0.01074507]
[1644733070409,3.8456,2908.4,2907.5,0.00294085]
[1644733070610,1.47359417,2908.3,2907.9,0.01074507]
[1644733070811,0.01074328,2908.3,2907.9,0.01074507]
[1644733071412,3.8456,2908.4,2907.5,0.00294085]
[1644733071810,0.01074328,2908.3,2907.9,0.01074507]
[1644733072313,3.45658637,2908.3,2907.9,0.01074507]
[1644733072749,3.44584309,2908.3,2907.5,0.00294085]
[1644733072952,3.45658637,2908.3,2907.9,0.01074507]
[1644733073352,1.4629226,2908.2,2907.9,0.01074507]
[1644733073753,3.3325688,2908.1,2907.9,0.01074507]
[1644733073957,3.70760805,2908.3,2907.2,0.00294085]
[1644733074163,3.71767392,2908.3,2907.9,0.01006755]
[1644733074359,0.18196587,2908.3,2907.9,0.01006755]
[1644733074557,3.52361051,2908.3,2907.9,0.01006755]
[1644733074958,1.46294309,2908.2,2907.9,0.01006755]
[1644733075158,3.31751336,2908.1,2907.5,0.00294085]
[1644733075358,0.93896578,2907.8,2907.5,0.00294085]
[1644733076062,0.93896578,2907.8,2907.2,0.00294085]
[1644733076502,0.93896578,2907.8,2907.5,0.0100679]
[1644733077504,0.93896578,2907.8,2907.3,0.00294085]
[1644733077804,0.93896578,2907.8,2907.5,0.0101132]
[1644733078004,0.1719,2908.0,2907.5,0.0101132]
[1644733078802,0.1719,2908.0,2907.4,0.04035806]
[1644733079009,1.05004489,2907.9,2907.6,0.01011307]
[1644733080854,3.3000572,2907.8,2907.6,0.01011307]
[1644733081052,3.49875307,2907.8,2907.4,0.04035806]
[1644733081252,1.05004489,2907.9,2907.4,0.04035806]
[1644733081451,1.05004489,2907.9,2907.6,0.01011006]
[1644733082252,1.05004489,2907.9,2907.4,0.04035806]
[1644733082654,1.05004489,2907.9,2907.6,0.01011006]
[1644733082854,3.40073166,2907.8,2907.6,0.01011006]
[1644733083056,0.02022012,2907.5,2907.4,0.04035806]
[1644733083904,0.02022012,2907.5,2907.1,1.07209891]
[1644733084106,0.02022012,2907.5,2907.1,2.26367179]
[1644733085910,0.02022012,2907.5,2907.1,1.07209891]
[1644733086904,0.02022012,2907.5,2906.7,11.78401044]
[1644733087110,0.02022012,2907.5,2906.7,4.25401044]
[1644733087304,0.02022012,2907.5,2907.2,0.01011086]
[1644733088355,0.02022012,2907.5,2906.7,4.25401044]
[1644733088553,0.02022012,2907.5,2907.2,0.0102382]
[1644733089557,0.02022012,2907.5,2906.7,4.25401044]
[1644733089763,0.02022012,2907.5,2907.2,0.0102382]
[1644733089962,1.46326897,2907.4,2907.2,0.0102382]
[1644733090163,3.9468642,2907.3,2907.2,0.0102382]
[1644733090558,0.1719,2907.3,2907.2,0.0102382]
[1644733090759,1.63523306,2907.3,2906.5,1.2037]
[1644733090961,1.18950323,2906.8,2906.7,0.04095947]
[1644733091606,1.2481,2907.3,2906.7,0.04095947]
[1644733091805,0.1719,2907.2,2906.7,0.04095947]
[1644733092005,0.1719,2907.2,2906.3,1.10566646]
[1644733092206,0.1719,2907.2,2906.9,0.01010249]
[1644733092805,0.02022012,2907.5,2906.9,0.01010249]
[1644733092806,1.03997507,2907.3,2906.9,0.01010249]
[1644733093204,1.03997507,2907.3,2906.4,1.1985]
[1644733093411,1.03997507,2907.3,2907.0,0.01010236]
[1644733093412,3.3340909,2907.2,2907.0,0.01010236]
[1644733093609,1.03997507,2907.3,2907.0,0.01010236]
[1644733094411,1.03997507,2907.3,2906.4,1.37059129]
[1644733094613,3.27031941,2907.2,2907.0,0.01010229]
[1644733094810,1.03997507,2907.3,2907.0,0.01010229]
[1644733095753,1.03997507,2907.3,2907.0,0.00326632]
[1644733096457,0.1719,2907.4,2907.0,0.00326632]
[1644733096854,0.1719,2907.4,2906.6,1.35582]
[1644733097055,0.02022012,2907.5,2907.1,0.00326627]
[1644733097663,0.02022012,2907.5,2907.2,1.06811082]
[1644733097858,0.02022012,2907.5,2907.2,1.24020211]
[1644733098057,0.02022012,2907.5,2907.2,1.06811082]
[1644733098258,0.02022012,2907.5,2907.2,1.07137692]
[1644733098908,0.02022012,2907.5,2907.3,0.17209129]
[1644733099111,0.02022012,2907.5,2907.3,0.66809129]
[1644733099909,0.02022012,2907.5,2907.4,0.17209129]
[1644733101916,0.02022012,2907.5,2907.4,1.60449129]
[1644733102115,0.1719,2908.6,2908.4,0.1693207]
[1644733102314,1.46285301,2908.5,2908.4,0.1693207]
[1644733102758,2.38115282,2908.5,2908.4,0.1693207]
[1644733103156,2.38115282,2908.5,2907.7,0.00293852]
[1644733103157,0.33864139,2908.0,2907.7,0.00293852]
[1644733103757,0.33864139,2908.0,2907.6,0.496]
[1644733104162,0.33864139,2908.0,2907.7,0.01020082]
[1644733105160,0.33864139,2908.0,2907.6,1.52762129]
[1644733105362,0.33864139,2908.0,2907.7,0.01020082]
[1644733106413,0.33864139,2908.0,2907.6,1.53055981]
[1644733106612,0.33864139,2908.0,2907.7,0.01020082]
[1644733107212,0.33864139,2908.0,2907.8,0.496]
[1644733107613,0.33864139,2908.0,2907.8,0.66809129]
[1644733111566,0.33864139,2908.0,2907.8,0.496]
[1644733114213,0.33864139,2908.0,2907.7,0.01316091]
[1644733114812,0.33864139,2908.0,2907.7,0.00293852]
[1644733115012,0.33864139,2908.0,2907.7,0.01316121]
[1644733116018,0.33864139,2908.0,2907.7,0.00293852]
[1644733116213,0.33864139,2908.0,2907.7,0.01316121]
[1644733117114,0.33864139,2908.0,2907.7,0.00293852]
[1644733117552,0.33864139,2908.0,2907.7,0.01316121]
[1644733117755,0.91155558,2907.8,2907.7,0.01316121]
[1644733117960,0.91155558,2907.8,2907.7,0.01022269]
[1644733118357,2.37451598,2907.8,2907.0,0.00293852]
[1644733118561,0.91155558,2907.8,2907.0,0.00293852]
[1644733118758,0.91155558,2907.8,2907.6,0.01022261]
[1644733119357,0.1719,2907.9,2907.6,0.01022261]
[1644733119560,0.1719,2907.9,2907.4,0.00293852]
[1644733119960,0.1719,2907.9,2907.6,0.01022267]
[1644733119961,1.46295423,2907.8,2907.6,0.01022267]
[1644733120157,0.1719,2907.9,2907.6,0.01022267]
[1644733120357,1.46298542,2907.8,2907.6,0.01022267]
[1644733120760,1.46298542,2907.8,2907.1,0.04383533]
[1644733120761,1.46298542,2907.8,2907.1,0.00293852]
[1644733121163,0.1719,2907.9,2907.6,0.01022267]
[1644733121408,0.92649661,2907.7,2907.6,0.01022267]
[1644733122007,0.92649661,2907.7,2907.2,0.00293852]
[1644733122215,0.92649661,2907.7,2907.5,0.01022275]
[1644733123018,0.1719,2907.9,2907.5,0.01022275]
[1644733123317,1.46299094,2907.8,2907.2,0.00293608]
[1644733123515,3.34220358,2907.7,2907.5,0.0102228]
[1644733123721,3.53294651,2907.7,2907.5,0.0102228]
[1644733123916,0.33864139,2908.0,2907.5,0.0102228]
[1644733123917,1.4630865,2907.6,2907.5,0.0102228]
[1644733124316,1.4630865,2907.8,2907.5,0.0102228]
[1644733124516,0.33864139,2908.0,2907.0,0.00293608]
[1644733124517,1.0855616,2907.6,2907.0,0.00293608]
[1644733124718,5.16349171,2907.5,2907.4,0.01022286]
[1644733124916,4.77120547,2907.5,2907.4,0.01022286]
[1644733125654,4.77120547,2907.5,2907.0,0.00293608]
[1644733125857,1.6349865,2907.4,2907.3,0.01022298]
[1644733126056,0.1719,2907.4,2907.3,0.01022298]
[1644733126260,1.63506908,2907.4,2907.3,0.01022298]
[1644733126455,5.14283358,2907.4,2907.3,0.01022298]
[1644733126855,5.14176144,2907.4,2907.0,0.00293608]
[1644733127057,1.46316908,2907.3,2907.2,0.01022309]
[1644733127258,3.67859236,2907.4,2907.2,0.01022309]
[1644733127456,1.0855616,2907.6,2907.2,0.01022309]
[1644733127656,1.46315,2907.5,2907.2,0.01022309]
[1644733128061,1.0855616,2907.6,2907.0,0.00293608]
[1644733128259,1.0855616,2907.6,2907.2,0.01022309]
[1644733128819,1.4630878,2907.5,2907.2,0.01022309]
[1644733129010,1.0855616,2907.6,2907.2,0.01022309]
[1644733129211,1.0855616,2907.6,2907.0,0.00293608]
[1644733129413,1.1866,2907.9,2907.2,0.01022311]
[1644733129613,1.46302668,2907.8,2907.2,0.01022311]
[1644733129813,4.73844903,2907.8,2907.2,0.01022311]
[1644733130014,1.46302668,2907.7,2907.2,0.01022311]
[1644733130413,1.46302668,2907.7,2907.0,0.00293608]
[1644733130712,1.1866,2907.9,2907.3,0.010223]
[1644733130913,1.46301822,2907.8,2907.3,0.010223]
[1644733131319,4.87944582,2907.8,2907.3,0.010223]
[1644733131516,4.87944582,2907.8,2907.2,0.00293608]
[1644733131714,1.46301822,2907.7,2907.2,0.00293608]
[1644733131915,3.4284927,2907.6,2907.4,0.01022289]
[1644733132120,3.46543284,2907.8,2907.4,0.01022289]
[1644733132318,1.4630845,2907.7,2907.4,0.01022289]
[1644733132561,3.39759086,2907.6,2907.4,0.01022289]
[1644733132771,0.03066867,2907.3,2907.0,0.00293608]
[1644733133166,0.03066867,2907.3,2907.0,0.04383372]
[1644733133972,0.03066867,2907.3,2907.0,0.00293608]
[1644733134367,0.03066867,2907.3,2907.0,0.01315941]
[1644733134868,0.03066867,2907.3,2907.0,0.01022333]
[1644733135066,1.46326657,2907.2,2907.0,0.01022333]
[1644733135269,0.85099732,2907.1,2906.7,0.00293608]
[1644733135469,0.85099732,2907.1,2907.0,0.01022333]
[1644733135873,2.31430632,2907.1,2907.0,0.01022333]
[1644733136166,2.48620632,2907.1,2907.0,0.01022333]
[1644733136405,2.48620632,2907.1,2906.3,0.00293608]
[1644733136608,5.7752585,2907.0,2906.9,0.01022347]
[1644733137406,6.0752585,2907.0,2906.9,0.01022347]
[1644733137605,6.0752585,2907.0,2906.1,0.00293608]
[1644733137804,1.463309,2906.9,2905.8,0.00293608]
[1644733138005,1.463309,2906.9,2906.8,0.01022358]